[Event "Early-Titled-Tuesday-Blitz-March-19-2024"]
[Site "Chess.com"]
[Date "2024.03.19"]
[Round "7"]
[White "JimDiGrease"]
[Black "UK_23"]
[Result "1-0"]
[WhiteElo "2980"]
[BlackElo "2401"]
[TimeControl "180+1"]
[EndTime "9:17:39 PDT"]
[Termination "JimDiGrease won by resignation"]

1. d4 {[%clk 0:03:00.9]} 1... d5 {[%clk 0:02:58]} 2. c4 {[%clk 0:03:01.1]} 2...
e6 {[%clk 0:02:53]} 3. Nf3 {[%clk 0:03:00.5]} 3... Nf6 {[%clk 0:02:52.9]} 4. Qc2
{[%clk 0:03:01.2]} 4... Be7 {[%clk 0:02:51.1]} 5. cxd5 {[%clk 0:03:01.4]} 5...
exd5 {[%clk 0:02:50.9]} 6. Bf4 {[%clk 0:03:02]} 6... c6 {[%clk 0:02:50.6]} 7. e3
{[%clk 0:03:02.5]} 7... g6 {[%clk 0:02:44.9]} 8. Bd3 {[%clk 0:03:00.2]} 8...
Nbd7 {[%clk 0:02:29]} 9. h3 {[%clk 0:02:57.1]} 9... Nf8 {[%clk 0:02:23.6]} 10.
Nc3 {[%clk 0:02:47.8]} 10... Ne6 {[%clk 0:02:22.1]} 11. Be5 {[%clk 0:02:28.8]}
11... Ng7 {[%clk 0:02:15.9]} 12. g4 {[%clk 0:02:28.1]} 12... O-O {[%clk
0:02:14.4]} 13. O-O-O {[%clk 0:02:23.6]} 13... Qa5 {[%clk 0:02:08.4]} 14. Kb1
{[%clk 0:02:23.1]} 14... b5 {[%clk 0:02:07.5]} 15. Rc1 {[%clk 0:02:20.4]} 15...
Bd7 {[%clk 0:02:03.5]} 16. Ne2 {[%clk 0:02:15.3]} 16... b4 {[%clk 0:02:00.1]}
17. Nd2 {[%clk 0:02:06.1]} 17... Rfc8 {[%clk 0:01:57.5]} 18. Nb3 {[%clk
0:02:06.2]} 18... Qd8 {[%clk 0:01:56.4]} 19. Nc5 {[%clk 0:02:06.6]} 19... Be8
{[%clk 0:01:54.9]} 20. Ba6 {[%clk 0:02:03.1]} 20... Qb6 {[%clk 0:01:34.3]} 21.
Bxc8 {[%clk 0:02:02.1]} 21... Rxc8 {[%clk 0:01:35.2]} 22. Nf4 {[%clk 0:01:51.6]}
22... a5 {[%clk 0:01:32.1]} 23. Nfd3 {[%clk 0:01:37.1]} 23... Ra8 {[%clk
0:01:25.5]} 24. Qa4 {[%clk 0:01:29.1]} 24... Ne4 {[%clk 0:01:01.1]} 25. Nxe4
{[%clk 0:01:18.8]} 25... dxe4 {[%clk 0:01:01.4]} 26. Nc5 {[%clk 0:01:18.9]}
26... f6 {[%clk 0:00:58.2]} 27. Bg3 {[%clk 0:01:11.8]} 27... Bf7 {[%clk
0:00:58.3]} 28. Nd7 {[%clk 0:01:07.1]} 28... Qa6 {[%clk 0:00:53]} 29. Qxc6
{[%clk 0:01:01.2]} 29... Qd3+ {[%clk 0:00:51.1]} 30. Ka1 {[%clk 0:01:01.1]}
30... Rd8 {[%clk 0:00:49.6]} 31. Rhd1 {[%clk 0:00:58]} 31... Qe2 {[%clk
0:00:48]} 32. Nxf6+ {[%clk 0:00:58.1]} 32... Bxf6 {[%clk 0:00:43.2]} 33. Qxf6
{[%clk 0:00:59]} 33... Rf8 {[%clk 0:00:39.4]} 34. Be5 {[%clk 0:00:59]} 1-0

[Event "Early-Titled-Tuesday-Blitz-March-19-2024"]
[Site "Chess.com"]
[Date "2024.03.19"]
[Round "7"]
[White "Boorchess"]
[Black "Pumpkin_in_moonlight"]
[Result "1/2-1/2"]
[WhiteElo "2544"]
[BlackElo "2238"]
[TimeControl "180+1"]
[EndTime "9:17:42 PDT"]
[Termination "Game drawn by repetition"]

1. d4 {[%clk 0:03:00.9]} 1... Nf6 {[%clk 0:02:55.9]} 2. c4 {[%clk 0:03:00.4]}
2... g6 {[%clk 0:02:55.2]} 3. f3 {[%clk 0:02:59.8]} 3... Bg7 {[%clk 0:02:53.5]}
4. e4 {[%clk 0:02:59.7]} 4... d6 {[%clk 0:02:53.6]} 5. Be3 {[%clk 0:02:59.5]}
5... O-O {[%clk 0:02:53.8]} 6. Ne2 {[%clk 0:02:59.5]} 6... e5 {[%clk 0:02:46.6]}
7. Qd2 {[%clk 0:02:59.1]} 7... Nbd7 {[%clk 0:02:35]} 8. Na3 {[%clk 0:02:51.3]}
8... exd4 {[%clk 0:02:23.6]} 9. Nxd4 {[%clk 0:02:50.9]} 9... Nc5 {[%clk
0:02:12.4]} 10. Be2 {[%clk 0:02:47.2]} 10... a5 {[%clk 0:02:05.1]} 11. Nb3
{[%clk 0:02:44.4]} 11... Nxb3 {[%clk 0:02:02]} 12. axb3 {[%clk 0:02:44.1]} 12...
b6 {[%clk 0:02:02.2]} 13. Nb5 {[%clk 0:02:42.9]} 13... Bb7 {[%clk 0:02:01.2]}
14. O-O {[%clk 0:02:41.3]} 14... Nd7 {[%clk 0:02:00.4]} 15. Bh6 {[%clk
0:02:27.9]} 15... Bxh6 {[%clk 0:01:55.3]} 16. Qxh6 {[%clk 0:02:27]} 16... Nc5
{[%clk 0:01:55.3]} 17. Qe3 {[%clk 0:02:19.5]} 17... Re8 {[%clk 0:01:52.5]} 18.
Qc3 {[%clk 0:02:06.9]} 18... f5 {[%clk 0:01:34]} 19. Bd3 {[%clk 0:02:05.6]}
19... Nxd3 {[%clk 0:01:31.1]} 20. Qxd3 {[%clk 0:02:05.1]} 20... fxe4 {[%clk
0:01:30.5]} 21. fxe4 {[%clk 0:02:04.4]} 21... Bxe4 {[%clk 0:01:30.4]} 22. Qg3
{[%clk 0:02:01.1]} 22... Qe7 {[%clk 0:01:23.8]} 23. Rae1 {[%clk 0:01:59.5]}
23... Qg7 {[%clk 0:01:12.9]} 24. h4 {[%clk 0:01:54.2]} 24... Bf5 {[%clk
0:01:11.7]} 25. Rxe8+ {[%clk 0:01:42.6]} 25... Rxe8 {[%clk 0:01:11]} 26. Nxc7
{[%clk 0:01:37.4]} 26... Re4 {[%clk 0:00:40.5]} 27. Nd5 {[%clk 0:01:20.9]} 27...
Rg4 {[%clk 0:00:33.2]} 28. Qxd6 {[%clk 0:01:15.3]} 28... Qd4+ {[%clk 0:00:30.7]}
29. Rf2 {[%clk 0:01:08.1]} 29... Qd1+ {[%clk 0:00:25.7]} 30. Rf1 {[%clk
0:01:04.9]} 30... Qd4+ {[%clk 0:00:21.9]} 31. Rf2 {[%clk 0:00:54.8]} 31... Qd1+
{[%clk 0:00:20.8]} 32. Rf1 {[%clk 0:00:54.7]} 32... Qd4+ {[%clk 0:00:20.5]}
1/2-1/2

[Event "Early-Titled-Tuesday-Blitz-March-19-2024"]
[Site "Chess.com"]
[Date "2024.03.19"]
[Round "7"]
[White "KhazhatulyAlikhan"]
[Black "vladgoncharov"]
[Result "1-0"]
[WhiteElo "2477"]
[BlackElo "2603"]
[TimeControl "180+1"]
[EndTime "9:17:51 PDT"]
[Termination "KhazhatulyAlikhan won by resignation"]

1. e4 {[%clk 0:02:59.5]} 1... e6 {[%clk 0:02:59.4]} 2. d4 {[%clk 0:02:56.2]}
2... d5 {[%clk 0:02:59.2]} 3. Nd2 {[%clk 0:02:56.9]} 3... c5 {[%clk 0:02:57.9]}
4. exd5 {[%clk 0:02:57.2]} 4... Qxd5 {[%clk 0:02:57.2]} 5. Ngf3 {[%clk
0:02:57.2]} 5... cxd4 {[%clk 0:02:57.4]} 6. Bc4 {[%clk 0:02:57.9]} 6... Qd8
{[%clk 0:02:56.9]} 7. O-O {[%clk 0:02:58.6]} 7... Nc6 {[%clk 0:02:57]} 8. Nb3
{[%clk 0:02:58.5]} 8... Nf6 {[%clk 0:02:57]} 9. Nbxd4 {[%clk 0:02:58.5]} 9...
Nxd4 {[%clk 0:02:57.1]} 10. Nxd4 {[%clk 0:02:59.4]} 10... Qc7 {[%clk 0:02:48]}
11. Bb3 {[%clk 0:02:52.9]} 11... Bd7 {[%clk 0:02:47.6]} 12. Qf3 {[%clk
0:02:50.8]} 12... Bc6 {[%clk 0:02:40.9]} 13. Nxc6 {[%clk 0:02:50.4]} 13... Qxc6
{[%clk 0:02:41]} 14. Qxc6+ {[%clk 0:02:50]} 14... bxc6 {[%clk 0:02:41.1]} 15.
Bf4 {[%clk 0:02:49.4]} 15... Nd5 {[%clk 0:02:27.9]} 16. Bg3 {[%clk 0:02:42.7]}
16... Bc5 {[%clk 0:02:26.5]} 17. c3 {[%clk 0:02:12.5]} 17... Rc8 {[%clk
0:02:19.6]} 18. Rad1 {[%clk 0:02:11.2]} 18... Ke7 {[%clk 0:02:18]} 19. Rfe1
{[%clk 0:02:06.2]} 19... Rhd8 {[%clk 0:02:15.6]} 20. Kf1 {[%clk 0:02:02.8]}
20... Nb6 {[%clk 0:02:03.7]} 21. Bh4+ {[%clk 0:01:56.9]} 21... Ke8 {[%clk
0:01:57.9]} 22. Bxd8 {[%clk 0:01:51.8]} 22... Rxd8 {[%clk 0:01:57.7]} 23. Rxd8+
{[%clk 0:01:52.5]} 23... Kxd8 {[%clk 0:01:58.6]} 24. Ke2 {[%clk 0:01:52.5]}
24... Ke7 {[%clk 0:01:57.7]} 25. Rd1 {[%clk 0:01:49.5]} 25... h6 {[%clk
0:01:55.5]} 26. f3 {[%clk 0:01:49.9]} 26... a5 {[%clk 0:01:54.3]} 27. a4 {[%clk
0:01:47.8]} 27... g5 {[%clk 0:01:52.2]} 28. g3 {[%clk 0:01:46.2]} 28... f5
{[%clk 0:01:50.8]} 29. Kd3 {[%clk 0:01:37.6]} 29... Kd6 {[%clk 0:01:48.6]} 30.
Re1 {[%clk 0:01:24]} 30... Nd5 {[%clk 0:01:13]} 31. Bxd5 {[%clk 0:01:23.7]}
31... Kxd5 {[%clk 0:01:12.9]} 32. Rb1 {[%clk 0:01:17.8]} 32... e5 {[%clk
0:01:10.8]} 33. b4 {[%clk 0:00:55.4]} 33... e4+ {[%clk 0:01:10.1]} 34. fxe4+
{[%clk 0:00:55.6]} 34... fxe4+ {[%clk 0:01:11]} 35. Ke2 {[%clk 0:00:56.4]} 35...
Bb6 {[%clk 0:01:11.7]} 36. Rd1+ {[%clk 0:00:47.3]} 36... Ke5 {[%clk 0:01:06.9]}
37. Rd7 {[%clk 0:00:43.1]} 1-0

[Event "Early-Titled-Tuesday-Blitz-March-19-2024"]
[Site "Chess.com"]
[Date "2024.03.19"]
[Round "7"]
[White "vugarrasulov"]
[Black "Andrei_Skvortsov"]
[Result "1-0"]
[WhiteElo "2976"]
[BlackElo "2739"]
[TimeControl "180+1"]
[EndTime "9:17:55 PDT"]
[Termination "vugarrasulov won by resignation"]

1. a3 {[%clk 0:03:00.9]} 1... e5 {[%clk 0:02:55.5]} 2. e4 {[%clk 0:03:00.8]}
2... Nf6 {[%clk 0:02:54.1]} 3. Nc3 {[%clk 0:03:01.4]} 3... d5 {[%clk 0:02:51.9]}
4. exd5 {[%clk 0:03:01.1]} 4... Nxd5 {[%clk 0:02:52.8]} 5. Nf3 {[%clk
0:03:00.3]} 5... Nxc3 {[%clk 0:02:51.7]} 6. bxc3 {[%clk 0:03:00.2]} 6... Bd6
{[%clk 0:02:50.8]} 7. d3 {[%clk 0:02:53.6]} 7... O-O {[%clk 0:02:50.3]} 8. Be2
{[%clk 0:02:52.9]} 8... h6 {[%clk 0:02:48.6]} 9. O-O {[%clk 0:02:53.2]} 9... Qf6
{[%clk 0:02:48.2]} 10. Nd2 {[%clk 0:02:51.9]} 10... Qe6 {[%clk 0:02:48.1]} 11.
Ne4 {[%clk 0:02:48.8]} 11... Be7 {[%clk 0:02:48.4]} 12. c4 {[%clk 0:02:48.6]}
12... Nc6 {[%clk 0:02:48]} 13. Bb2 {[%clk 0:02:45.7]} 13... Nd4 {[%clk
0:02:47.6]} 14. Re1 {[%clk 0:02:44.7]} 14... Qb6 {[%clk 0:02:41.5]} 15. Rb1
{[%clk 0:02:43.2]} 15... Qa5 {[%clk 0:02:37.4]} 16. Bc3 {[%clk 0:02:34.3]} 16...
Qa6 {[%clk 0:02:32.2]} 17. Bb4 {[%clk 0:02:32.3]} 17... Bxb4 {[%clk 0:02:17.1]}
18. axb4 {[%clk 0:02:33.2]} 18... Nxe2+ {[%clk 0:02:16.8]} 19. Qxe2 {[%clk
0:02:32.9]} 19... Qg6 {[%clk 0:02:16.2]} 20. b5 {[%clk 0:02:27.7]} 20... a6
{[%clk 0:02:07.3]} 21. Nc3 {[%clk 0:02:26.5]} 21... f6 {[%clk 0:01:58.1]} 22.
Nd5 {[%clk 0:02:25.4]} 22... Qf7 {[%clk 0:01:53.6]} 23. b6 {[%clk 0:02:24.1]}
23... cxb6 {[%clk 0:01:49.1]} 24. Nxb6 {[%clk 0:02:25]} 24... Rb8 {[%clk
0:01:49.1]} 25. c5 {[%clk 0:02:19.8]} 25... Bf5 {[%clk 0:01:44.2]} 26. Qf3
{[%clk 0:02:18.6]} 26... Qg6 {[%clk 0:01:39.7]} 27. Nd5 {[%clk 0:02:16.5]} 27...
Rf7 {[%clk 0:01:40]} 28. Ne3 {[%clk 0:02:14.8]} 28... Be6 {[%clk 0:01:37.9]} 29.
Rb6 {[%clk 0:02:14.7]} 29... Re7 {[%clk 0:01:37.1]} 30. h4 {[%clk 0:02:13.6]}
30... Qf7 {[%clk 0:01:35.9]} 31. Reb1 {[%clk 0:02:13.2]} 31... Rc8 {[%clk
0:01:31]} 32. Rxb7 {[%clk 0:02:07.2]} 32... Rxc5 {[%clk 0:01:28.7]} 33. c4
{[%clk 0:02:04.8]} 33... Rcc7 {[%clk 0:01:09]} 34. Rxc7 {[%clk 0:02:04.6]} 34...
Rxc7 {[%clk 0:01:09.9]} 35. Qa8+ {[%clk 0:01:59.9]} 35... Kh7 {[%clk 0:01:04.4]}
36. Qxa6 {[%clk 0:02:00.1]} 36... Rd7 {[%clk 0:01:04.9]} 37. Rb6 {[%clk
0:01:58.8]} 37... Re7 {[%clk 0:00:47.4]} 38. Rd6 {[%clk 0:01:59]} 38... Qe8
{[%clk 0:00:41.2]} 39. c5 {[%clk 0:01:56.4]} 39... f5 {[%clk 0:00:41]} 40. Qc6
{[%clk 0:01:46.3]} 40... Qf7 {[%clk 0:00:36.1]} 41. Nd5 {[%clk 0:01:46.4]} 41...
Bxd5 {[%clk 0:00:27.1]} 42. Qxd5 {[%clk 0:01:47.3]} 42... Qh5 {[%clk 0:00:26.6]}
43. Qf3 {[%clk 0:01:42.4]} 43... Qxf3 {[%clk 0:00:17.3]} 44. gxf3 {[%clk
0:01:43.3]} 44... g5 {[%clk 0:00:15.5]} 45. h5 {[%clk 0:01:42.5]} 45... Kg7
{[%clk 0:00:11.3]} 46. c6 {[%clk 0:01:42.9]} 46... Kf7 {[%clk 0:00:09.1]} 47.
Rxh6 {[%clk 0:01:42.4]} 47... g4 {[%clk 0:00:08.1]} 48. Rh7+ {[%clk 0:01:42]}
1-0

[Event "Early-Titled-Tuesday-Blitz-March-19-2024"]
[Site "Chess.com"]
[Date "2024.03.19"]
[Round "7"]
[White "Arystanner"]
[Black "Boundless_Strike"]
[Result "1-0"]
[WhiteElo "2841"]
[BlackElo "2627"]
[TimeControl "180+1"]
[EndTime "9:18:00 PDT"]
[Termination "Arystanner won by checkmate"]

1. d4 {[%clk 0:02:55.4]} 1... e5 {[%clk 0:03:00]} 2. dxe5 {[%clk 0:02:51.2]}
2... d6 {[%clk 0:03:00.1]} 3. Nf3 {[%clk 0:02:50.2]} 3... Bg4 {[%clk 0:02:59.6]}
4. exd6 {[%clk 0:02:46.1]} 4... Bxd6 {[%clk 0:02:59.4]} 5. e4 {[%clk 0:02:45.4]}
5... Nc6 {[%clk 0:02:53.4]} 6. Bd3 {[%clk 0:02:45.4]} 6... Qe7 {[%clk
0:02:53.3]} 7. h3 {[%clk 0:02:44.1]} 7... Bh5 {[%clk 0:02:52.9]} 8. Nc3 {[%clk
0:02:44.6]} 8... O-O-O {[%clk 0:02:31.4]} 9. Nd5 {[%clk 0:02:44]} 9... Qe8
{[%clk 0:02:22]} 10. Be3 {[%clk 0:02:44.1]} 10... f5 {[%clk 0:01:48.1]} 11. exf5
{[%clk 0:02:30.4]} 11... Nf6 {[%clk 0:01:24.1]} 12. Nxf6 {[%clk 0:02:25.1]}
12... gxf6 {[%clk 0:01:24.3]} 13. Qe2 {[%clk 0:02:20]} 13... Nb4 {[%clk
0:01:22.1]} 14. O-O-O {[%clk 0:02:15.7]} 14... Nxa2+ {[%clk 0:01:12.7]} 15. Kb1
{[%clk 0:02:16]} 15... Qa4 {[%clk 0:00:53]} 16. Bc4 {[%clk 0:02:15.2]} 16... Nb4
{[%clk 0:00:27.9]} 17. g4 {[%clk 0:02:08.8]} 17... Be8 {[%clk 0:00:19.5]} 18. c3
{[%clk 0:02:08.8]} 18... Nc6 {[%clk 0:00:14]} 19. Nd4 {[%clk 0:02:06.8]} 19...
Ne5 {[%clk 0:00:13]} 20. Be6+ {[%clk 0:02:07.1]} 20... Kb8 {[%clk 0:00:12.8]}
21. Bb3 {[%clk 0:02:07.3]} 21... Qd7 {[%clk 0:00:06]} 22. f4 {[%clk 0:02:07.6]}
22... Nc6 {[%clk 0:00:05.8]} 23. Ne6 {[%clk 0:02:08]} 23... Rc8 {[%clk
0:00:06.4]} 24. Ba4 {[%clk 0:02:08.5]} 24... Qe7 {[%clk 0:00:06.5]} 25. Rhe1
{[%clk 0:02:04.8]} 25... h5 {[%clk 0:00:06.6]} 26. Qf2 {[%clk 0:02:04.6]} 26...
hxg4 {[%clk 0:00:05.4]} 27. hxg4 {[%clk 0:02:05.5]} 27... Rg8 {[%clk 0:00:06]}
28. Bxc6 {[%clk 0:02:03.3]} 28... Bxc6 {[%clk 0:00:06.2]} 29. Bxa7+ {[%clk
0:02:04]} 29... Ka8 {[%clk 0:00:07]} 30. g5 {[%clk 0:02:01]} 30... fxg5 {[%clk
0:00:05.3]} 31. fxg5 {[%clk 0:02:00.4]} 31... Rh8 {[%clk 0:00:05.5]} 32. f6
{[%clk 0:02:00.3]} 32... Qf7 {[%clk 0:00:05.4]} 33. Bc5 {[%clk 0:02:00.5]} 33...
Rh2 {[%clk 0:00:04.9]} 34. Qf5 {[%clk 0:01:53.1]} 34... Rg8 {[%clk 0:00:04.5]}
35. Bxd6 {[%clk 0:01:52.4]} 35... cxd6 {[%clk 0:00:05.1]} 36. Rxd6 {[%clk
0:01:46.3]} 36... Qh5 {[%clk 0:00:05.1]} 37. Rxc6 {[%clk 0:01:39.4]} 37... bxc6
{[%clk 0:00:04.7]} 38. f7 {[%clk 0:01:39.5]} 38... Rb8 {[%clk 0:00:02.8]} 39.
Qa5+ {[%clk 0:01:38.8]} 39... Kb7 {[%clk 0:00:02.9]} 40. Qc7+ {[%clk 0:01:39.1]}
40... Ka8 {[%clk 0:00:02.9]} 41. Qxb8+ {[%clk 0:01:39.2]} 41... Kxb8 {[%clk
0:00:03.3]} 42. f8=Q+ {[%clk 0:01:39.9]} 42... Kb7 {[%clk 0:00:03.1]} 43. Nc5+
{[%clk 0:01:39.9]} 43... Kb6 {[%clk 0:00:03.5]} 44. Qb8+ {[%clk 0:01:40.2]}
44... Kxc5 {[%clk 0:00:03.8]} 45. Qb4+ {[%clk 0:01:40.9]} 45... Kd5 {[%clk
0:00:04.4]} 46. Qd4# {[%clk 0:01:41.8]} 1-0

[Event "Early-Titled-Tuesday-Blitz-March-19-2024"]
[Site "Chess.com"]
[Date "2024.03.19"]
[Round "7"]
[White "JosefineHeinemann"]
[Black "maximnovik"]
[Result "1-0"]
[WhiteElo "2476"]
[BlackElo "2595"]
[TimeControl "180+1"]
[EndTime "9:18:01 PDT"]
[Termination "JosefineHeinemann won on time"]

1. e4 {[%clk 0:03:00.9]} 1... c6 {[%clk 0:02:59.8]} 2. Nf3 {[%clk 0:02:59.3]}
2... d5 {[%clk 0:03:00.7]} 3. d3 {[%clk 0:02:59.5]} 3... Nd7 {[%clk 0:02:59.9]}
4. exd5 {[%clk 0:02:53.1]} 4... cxd5 {[%clk 0:02:59.4]} 5. d4 {[%clk 0:02:53.8]}
5... g6 {[%clk 0:02:57.1]} 6. Bd3 {[%clk 0:02:53.5]} 6... Bg7 {[%clk 0:02:57.3]}
7. O-O {[%clk 0:02:53.9]} 7... Ngf6 {[%clk 0:02:56.7]} 8. c3 {[%clk 0:02:53]}
8... O-O {[%clk 0:02:56.9]} 9. h3 {[%clk 0:02:53.2]} 9... Ne4 {[%clk 0:02:54.4]}
10. Nbd2 {[%clk 0:02:52.3]} 10... Ndf6 {[%clk 0:02:53.6]} 11. Re1 {[%clk
0:02:52.7]} 11... Bf5 {[%clk 0:02:53.1]} 12. Qc2 {[%clk 0:02:52.7]} 12... Nd6
{[%clk 0:02:39.4]} 13. Bxf5 {[%clk 0:02:50]} 13... Nxf5 {[%clk 0:02:38.9]} 14.
Ne5 {[%clk 0:02:50.3]} 14... Rc8 {[%clk 0:02:34.4]} 15. Qb3 {[%clk 0:02:50.4]}
15... Qc7 {[%clk 0:02:29.2]} 16. Ndf3 {[%clk 0:02:48.1]} 16... Nd6 {[%clk
0:01:59.8]} 17. Bf4 {[%clk 0:02:44.9]} 17... e6 {[%clk 0:01:59.6]} 18. a4 {[%clk
0:02:42.5]} 18... Nfe4 {[%clk 0:01:57]} 19. Nd2 {[%clk 0:02:28]} 19... Nxd2
{[%clk 0:01:29]} 20. Bxd2 {[%clk 0:02:28.9]} 20... f6 {[%clk 0:01:28.5]} 21. Nd3
{[%clk 0:02:26.2]} 21... Nc4 {[%clk 0:01:28.1]} 22. Bf4 {[%clk 0:02:24.7]} 22...
e5 {[%clk 0:01:26.7]} 23. Bg3 {[%clk 0:02:17.8]} 23... Rfe8 {[%clk 0:01:22.6]}
24. Re2 {[%clk 0:02:12.4]} 24... Qf7 {[%clk 0:01:21.2]} 25. dxe5 {[%clk
0:02:12.1]} 25... fxe5 {[%clk 0:01:20]} 26. Rae1 {[%clk 0:02:11.8]} 26... e4
{[%clk 0:01:15.3]} 27. Nb4 {[%clk 0:02:10.4]} 27... a5 {[%clk 0:00:40.3]} 28.
Nc2 {[%clk 0:02:06.8]} 28... Re6 {[%clk 0:00:38.2]} 29. Ne3 {[%clk 0:02:02.2]}
29... Rb6 {[%clk 0:00:31.2]} 30. Qa2 {[%clk 0:02:00.1]} 30... Nxe3 {[%clk
0:00:20]} 31. fxe3 {[%clk 0:01:39.3]} 31... h5 {[%clk 0:00:19.7]} 32. Rd1 {[%clk
0:01:38.2]} 32... Rc4 {[%clk 0:00:19.7]} 33. Red2 {[%clk 0:01:34.6]} 33... Bh6
{[%clk 0:00:17.8]} 34. Rxd5 {[%clk 0:01:32.5]} 34... Bxe3+ {[%clk 0:00:16.8]}
35. Kh1 {[%clk 0:01:24.4]} 35... Rbc6 {[%clk 0:00:07.8]} 36. Rd8+ {[%clk
0:01:17.1]} 36... Kh7 {[%clk 0:00:04.8]} 37. R8d7 {[%clk 0:01:16.6]} 1-0

[Event "Early-Titled-Tuesday-Blitz-March-19-2024"]
[Site "Chess.com"]
[Date "2024.03.19"]
[Round "7"]
[White "Navyblue1"]
[Black "bobo_panda"]
[Result "0-1"]
[WhiteElo "2217"]
[BlackElo "2348"]
[TimeControl "180+1"]
[EndTime "9:18:02 PDT"]
[Termination "bobo_panda won by resignation"]

1. d4 {[%clk 0:02:50.9]} 1... Nf6 {[%clk 0:02:52.6]} 2. c4 {[%clk 0:02:49.1]}
2... e6 {[%clk 0:02:52.1]} 3. Nf3 {[%clk 0:02:47.6]} 3... Bb4+ {[%clk
0:02:50.9]} 4. Bd2 {[%clk 0:02:44.1]} 4... a5 {[%clk 0:02:49.7]} 5. a3 {[%clk
0:02:39.3]} 5... Bxd2+ {[%clk 0:02:48.3]} 6. Qxd2 {[%clk 0:02:38.8]} 6... b6
{[%clk 0:02:43.4]} 7. g3 {[%clk 0:02:36.1]} 7... Bb7 {[%clk 0:02:42.7]} 8. Bg2
{[%clk 0:02:35.6]} 8... Ne4 {[%clk 0:02:43]} 9. Qc2 {[%clk 0:02:34.7]} 9... f5
{[%clk 0:02:43.1]} 10. Nc3 {[%clk 0:02:33.8]} 10... Nxc3 {[%clk 0:02:41.1]} 11.
Qxc3 {[%clk 0:02:31.8]} 11... d6 {[%clk 0:02:41.6]} 12. O-O {[%clk 0:02:30.7]}
12... Nd7 {[%clk 0:02:41.6]} 13. b4 {[%clk 0:02:18.5]} 13... O-O {[%clk
0:02:39.6]} 14. c5 {[%clk 0:02:15.3]} 14... Bd5 {[%clk 0:02:39]} 15. Nh4 {[%clk
0:02:05.6]} 15... Nf6 {[%clk 0:02:32.8]} 16. bxa5 {[%clk 0:01:40.6]} 16... bxa5
{[%clk 0:02:25.1]} 17. Bxd5 {[%clk 0:01:32]} 17... Nxd5 {[%clk 0:02:24.3]} 18.
Qc4 {[%clk 0:01:32.2]} 18... f4 {[%clk 0:02:20.4]} 19. Rab1 {[%clk 0:01:24.9]}
19... Rb8 {[%clk 0:02:05.1]} 20. Nf3 {[%clk 0:01:19.1]} 20... fxg3 {[%clk
0:02:03.9]} 21. hxg3 {[%clk 0:01:16.6]} 21... Qd7 {[%clk 0:01:46.9]} 22. Rxb8
{[%clk 0:01:02.9]} 22... Rxb8 {[%clk 0:01:47.8]} 23. e4 {[%clk 0:01:00.3]} 23...
Nf6 {[%clk 0:01:46]} 24. Re1 {[%clk 0:00:29]} 24... d5 {[%clk 0:01:29.4]} 25.
exd5 {[%clk 0:00:20.6]} 25... exd5 {[%clk 0:01:30.3]} 26. Qd3 {[%clk 0:00:20.2]}
26... Ne4 {[%clk 0:01:28.3]} 27. Ne5 {[%clk 0:00:19.8]} 27... Qb5 {[%clk
0:01:26.7]} 28. Qxb5 {[%clk 0:00:18.7]} 28... Rxb5 {[%clk 0:01:27.6]} 29. Re3
{[%clk 0:00:18.2]} 29... a4 {[%clk 0:01:25.2]} 30. Kg2 {[%clk 0:00:15.4]} 30...
Rb3 {[%clk 0:01:16.7]} 31. Rf3 {[%clk 0:00:14.6]} 31... Nd2 {[%clk 0:01:10.7]}
32. Rd3 {[%clk 0:00:14]} 32... Nc4 {[%clk 0:01:09.4]} 33. Kf3 {[%clk 0:00:12.9]}
33... Nxa3 {[%clk 0:01:06.6]} 34. Ke3 {[%clk 0:00:11.3]} 34... Nc4+ {[%clk
0:01:05.9]} 35. Ke2 {[%clk 0:00:10.8]} 35... Nxe5 {[%clk 0:01:01.2]} 36. Rxb3
{[%clk 0:00:10]} 36... axb3 {[%clk 0:01:00.9]} 37. dxe5 {[%clk 0:00:10.9]} 37...
b2 {[%clk 0:01:01.2]} 38. Kd2 {[%clk 0:00:11]} 38... b1=Q {[%clk 0:01:01.4]} 0-1

[Event "Early-Titled-Tuesday-Blitz-March-19-2024"]
[Site "Chess.com"]
[Date "2024.03.19"]
[Round "7"]
[White "ImportedItalianMaple"]
[Black "GelmanAlexander"]
[Result "1/2-1/2"]
[WhiteElo "2525"]
[BlackElo "2681"]
[TimeControl "180+1"]
[EndTime "9:18:04 PDT"]
[Termination "Game drawn by agreement"]

1. Nf3 {[%clk 0:03:00.2]} 1... c5 {[%clk 0:03:00.2]} 2. e4 {[%clk 0:02:59.6]}
2... e6 {[%clk 0:02:59.8]} 3. g3 {[%clk 0:02:58.5]} 3... Nc6 {[%clk 0:02:59.1]}
4. Bg2 {[%clk 0:02:58.2]} 4... Nf6 {[%clk 0:02:59.7]} 5. Qe2 {[%clk 0:02:57.5]}
5... d6 {[%clk 0:03:00]} 6. O-O {[%clk 0:02:56.6]} 6... Be7 {[%clk 0:03:00.6]}
7. Rd1 {[%clk 0:02:42.8]} 7... O-O {[%clk 0:02:59.8]} 8. d4 {[%clk 0:02:43.1]}
8... cxd4 {[%clk 0:02:59.6]} 9. Nxd4 {[%clk 0:02:44]} 9... Qc7 {[%clk
0:02:59.7]} 10. c4 {[%clk 0:02:43]} 10... Ne5 {[%clk 0:02:56.4]} 11. b3 {[%clk
0:02:41.8]} 11... a6 {[%clk 0:02:56.7]} 12. Bb2 {[%clk 0:02:41.8]} 12... Bd7
{[%clk 0:02:57.2]} 13. Nc3 {[%clk 0:02:40.7]} 13... Rfe8 {[%clk 0:02:56.6]} 14.
Rac1 {[%clk 0:02:40.6]} 14... Rac8 {[%clk 0:02:56.3]} 15. h3 {[%clk 0:02:38.8]}
15... Qb8 {[%clk 0:02:55.3]} 16. a4 {[%clk 0:02:25.4]} 16... Qc7 {[%clk
0:02:54.9]} 17. Rc2 {[%clk 0:02:10.1]} 17... h6 {[%clk 0:02:53.1]} 18. Rcd2
{[%clk 0:02:06.3]} 18... Red8 {[%clk 0:02:53.5]} 19. Ba3 {[%clk 0:01:52.6]}
19... Be8 {[%clk 0:02:52.7]} 20. Kh2 {[%clk 0:01:49.8]} 20... Qb6 {[%clk
0:02:51]} 21. f4 {[%clk 0:01:26.8]} 21... Ng6 {[%clk 0:02:50.5]} 22. f5 {[%clk
0:01:21.7]} 22... Nf8 {[%clk 0:02:50.3]} 23. e5 {[%clk 0:01:15.1]} 23... dxe5
{[%clk 0:02:42.6]} 24. Bxe7 {[%clk 0:01:16]} 24... Rxd4 {[%clk 0:02:42.8]} 25.
Qxe5 {[%clk 0:01:01.5]} 25... Rxd2 {[%clk 0:02:41.7]} 26. Rxd2 {[%clk
0:01:02.1]} 26... N6d7 {[%clk 0:02:26.8]} 27. Qe4 {[%clk 0:00:52.3]} 27... Qxb3
{[%clk 0:02:22.9]} 28. Qxb7 {[%clk 0:00:51.9]} 28... Qxc4 {[%clk 0:02:03.5]} 29.
Ne4 {[%clk 0:00:38.2]} 29... Rc7 {[%clk 0:01:56.5]} 30. Qa8 {[%clk 0:00:27.8]}
30... Rc8 {[%clk 0:01:46.5]} 31. Nd6 {[%clk 0:00:26.2]} 31... Rxa8 {[%clk
0:01:45.8]} 32. Nxc4 {[%clk 0:00:26.7]} 32... Rb8 {[%clk 0:01:39.7]} 33. Nd6
{[%clk 0:00:22.1]} 33... Ne5 {[%clk 0:01:28.8]} 34. Bxf8 {[%clk 0:00:17.1]}
34... Kxf8 {[%clk 0:01:27.6]} 35. fxe6 {[%clk 0:00:17.7]} 35... fxe6 {[%clk
0:01:27.3]} 36. Re2 {[%clk 0:00:18]} 36... Nf7 {[%clk 0:01:24.8]} 37. Rxe6
{[%clk 0:00:17.7]} 37... Nxd6 {[%clk 0:01:24.1]} 38. Rxd6 {[%clk 0:00:18]} 38...
Bxa4 {[%clk 0:01:06.6]} 39. Rxa6 {[%clk 0:00:18.6]} 39... Bd1 {[%clk 0:01:06.4]}
40. Ra8 {[%clk 0:00:19]} 40... Rxa8 {[%clk 0:01:05.9]} 41. Bxa8 {[%clk
0:00:19.9]} 41... Ke7 {[%clk 0:01:06.6]} 42. Kg2 {[%clk 0:00:20.4]} 42... Kf6
{[%clk 0:01:07.1]} 43. Bf3 {[%clk 0:00:20.8]} 43... Bxf3+ {[%clk 0:01:05.8]} 44.
Kxf3 {[%clk 0:00:21.7]} 44... Ke5 {[%clk 0:01:06.4]} 45. Ke3 {[%clk 0:00:22]}
1/2-1/2